[Event "FIDE Grand Swiss 2023"]
[Site "Villa Marina, Douglas, Isle of Man"]
[Date "2023.11.05"]
[Round "11.29"]
[White "Shevchenko, Kirill"]
[Black "Mishra, Abhimanyu"]
[Result "1/2-1/2"]
[WhiteElo "2671"]
[BlackElo "2592"]
[EventDate "2023.10.25"]
[ECO "C07"]
[PlyCount "68"]
[BlackFideId "30920019"]
[TimeControl "40/100 + 20/50 + 15 + 30s/move"]
[WhiteFideId "14129574"]

1.e4 {[%clk 01:40:56][%emt 00:00:03]} 1...e6 {[%clk 01:40:56][%emt 00:00:05]} 
2.d4 {[%clk 01:41:21][%emt 00:00:05]} 2...d5 {[%clk 01:41:21][%emt 00:00:05]} 
3.Nd2 {[%clk 01:41:45][%emt 00:00:05]} 3...c5 {[%clk 01:41:36][%emt 00:00:15]} 
4.Ngf3 {[%clk 01:42:09][%emt 00:00:06]} 4...cxd4 {[%clk 01:41:51][%emt
00:00:16]} 5.Nxd4 {[%clk 01:42:34][%emt 00:00:05]} 5...Nc6 {[%clk 01:41:54][%emt
00:00:27]} 6.Bb5 {[%clk 01:42:56][%emt 00:00:08]} 6...Bd7 {[%clk 01:42:19][%emt
00:00:05]} 7.Nxc6 {[%clk 01:43:20][%emt 00:00:05]} 7...bxc6 {[%clk
01:42:43][%emt 00:00:06]} 8.Bd3 {[%clk 01:43:47][%emt 00:00:03]} 8...Bd6 {[%clk
01:42:40][%emt 00:00:33]} 9.Qe2 {[%clk 01:43:02][%emt 00:01:16]} 9...e5 {[%clk
01:41:48][%emt 00:01:22]} 10.O-O {[%clk 01:37:56][%emt 00:05:35]} 10...Qe7 
{[%clk 01:41:44][%emt 00:00:35]} 11.c4 {[%clk 01:32:32][%emt 00:05:54]} 11...d4 
{[%clk 01:40:46][%emt 00:01:28]} 12.f4 {[%clk 01:29:08][%emt 00:03:54]} 
12...Nf6 {[%clk 01:39:40][%emt 00:01:36]} 13.c5 {[%clk 01:08:59][%emt 00:20:39]} 
13...Bxc5 {[%clk 01:39:47][%emt 00:00:23]} 14.Nc4 {[%clk 01:06:15][%emt
00:03:14]} 14...exf4 {[%clk 01:36:31][%emt 00:03:46]} 15.Bxf4 {[%clk
01:02:44][%emt 00:04:00]} 15...Ng4 {[%clk 01:36:53][%emt 00:00:09]} 16.Rac1 
{[%clk 00:52:14][%emt 00:11:00]} 16...O-O {[%clk 01:16:53][%emt 00:20:31]} 
17.e5 {[%clk 00:33:38][%emt 00:19:05]} 17...Ne3 {[%clk 01:10:07][%emt 00:07:16]} 
18.Nxe3 {[%clk 00:31:28][%emt 00:02:40]} 18...dxe3 {[%clk 01:10:31][%emt
00:00:06]} 19.Bxh7+ {[%clk 00:28:18][%emt 00:03:39]} 19...Kxh7 {[%clk
01:10:53][%emt 00:00:08]} 20.Qc2+ {[%clk 00:28:46][%emt 00:00:02]} 20...Kg8 
{[%clk 01:11:10][%emt 00:00:13]} 21.Qxc5 {[%clk 00:29:13][%emt 00:00:03]} 
21...Qxc5 {[%clk 01:08:00][%emt 00:03:40]} 22.Rxc5 {[%clk 00:29:41]} ( 22.Rc2 
{[%emt 00:00:02]} 22...Qc4 23.Rxc4 {[%clk 00:29:41]} 23...Be6 {[%clk
01:05:15][%emt 00:03:16]} 24.Rc5 {[%clk 00:26:50]} 24...Bxa2 {[%clk 01:04:19]} 
25.Bxe3 {[%clk 00:27:03]} 25...a5 {[%clk 01:00:34]} 26.Rxc6 {[%clk 00:17:23]} 
26...Bb3 {[%clk 00:53:57][%emt 00:17:18]} 27.Ra1 {[%clk 00:17:18]} 27...Rfc8 
{[%emt 00:02:27]} 28.Bc5 Rcb8 {[%clk 00:52:35]} 29.Rc1 {[%clk 00:10:24][%emt
00:07:23]} 29...Be6 {[%clk 00:47:24][%emt 00:05:42]} 30.Ba3 {[%clk
00:08:42][%emt 00:02:12]} 30...Rb5 {[%clk 00:45:50][%emt 00:02:04]} 31.R1c5 
{[%clk 00:08:59][%emt 00:00:12]} 31...Rxc5 {[%clk 00:46:07][%emt 00:00:15]} 
32.Rxc5 {[%clk 00:09:25][%emt 00:00:03]} 32...a4 {[%clk 00:45:57][%emt
00:00:40]} 33.Rb5 {[%clk 00:06:16][%emt 00:03:38]} 33...Rc8 {[%clk
00:42:29][%emt 00:03:58]} 34.Bc5 {[%clk 00:06:29] [%emt 00:00:17]} 34...Rd8 
{[%clk 00:42:51] [%emt 00:00:09]} 35.Bd6 {[%clk 00:06:27][%emt 00:00:32]} 
35...Rc8 {[%clk 00:43:16][%emt 00:00:05]} 36.Bc5 {[%clk 00:06:29][%emt
00:00:17]} 36...Rd8 {[%clk 00:42:51][%emt 00:00:09]} ) 22...Be6 {[%clk 01:05:15]
[%emt 00:03:18]} 23.Bxe3 {[%clk 00:26:50] [%emt 00:03:21]} 23...Bxa2 {[%clk
01:04:19] [%emt 00:01:26]} 24.Rxc6 {[%clk 00:27:03] [%emt 00:00:17]} 24...a5 
{[%clk 01:00:34] [%emt 00:04:14]} 25.Ra1 {[%clk 00:17:23] [%emt 00:10:11]} 
25...Bb3 {[%clk 00:53:57] [%emt 00:07:07]} 26.Bc5 {[%clk 00:17:18] [%emt
00:00:35]} 26...Rfb8 {[%clk 00:52:35] [%emt 00:01:52]} 27.Rc1 {[%clk 00:10:24]
[%emt 00:07:23]} 27...Be6 {[%clk 00:47:24] [%emt 00:05:42]} 28.Ba3 {[%clk
00:08:42] [%emt 00:02:12]} 28...Rb5 {[%clk 00:45:50] [%emt 00:02:04]} 29.R1c5 
{[%clk 00:08:59] [%emt 00:00:12]} 29...Rxc5 {[%clk 00:46:07] [%emt 00:00:15]} 
30.Rxc5 {[%clk 00:09:25] [%emt 00:00:03]} 30...a4 {[%clk 00:45:57] [%emt
00:00:40]} 31.Rb5 {[%clk 00:06:16] [%emt 00:03:38]} 31...Rc8 {[%clk 00:42:29]
[%emt 00:03:58]} 32.Bc5 {[%clk 00:06:29] [%emt 00:00:17]} 32...Rd8 {[%clk
00:42:51] [%emt 00:00:09]} 33.Bd6 {[%clk 00:06:27] [%emt 00:00:32]} 33...Rc8 
{[%clk 00:43:16] [%emt 00:00:05]} 34.Bc5 {[%clk 00:04:06] [%emt 00:02:51]} 
34...Rd8 {[%clk 00:43:36] [%emt 00:00:10]} 1/2-1/2

[Event "FIDE Grand Swiss 2023"]
[Site "Villa Marina, Douglas, Isle of Man"]
[Date "2023.11.05"]
[Round "11.32"]
[White "Pichot, Alan"]
[Black "Tari, Aryan"]
[Result "1-0"]
[WhiteElo "2650"]
[BlackElo "2619"]
[EventDate "2023.10.25"]
[ECO "C50"]
[PlyCount "101"]
[BlackFideId "1510045"]
[TimeControl "40/100 + 20/50 + 15 + 30s/move"]
[WhiteFideId "110973"]

1.e4 {[%clk 01:40:55][%emt 00:00:04]} 1...e5 {[%clk 01:40:53][%emt 00:00:07]} 
2.Nf3 {[%clk 01:41:16][%emt 00:00:09]} 2...Nc6 {[%clk 01:41:19][%emt 00:00:05]} 
3.Bc4 {[%clk 01:41:31][%emt 00:00:13]} 3...Nf6 {[%clk 01:41:43][%emt 00:00:08]} 
4.d3 {[%clk 01:41:52][%emt 00:00:09]} 4...Bc5 {[%clk 01:42:06][%emt 00:00:07]} 
5.O-O {[%clk 01:41:48][%emt 00:00:33]} 5...d6 {[%clk 01:42:18][%emt 00:00:19]} 
6.a4 {[%clk 01:41:23][%emt 00:00:55]} 6...O-O {[%clk 01:40:28][%emt 00:02:20]} 
7.h3 {[%clk 01:39:55][%emt 00:01:58]} 7...h6 {[%clk 01:37:54][%emt 00:03:04]} 
8.Be3 {[%clk 01:38:17][%emt 00:02:08]} 8...Bxe3 {[%clk 01:34:27][%emt 00:03:57]} 
9.fxe3 {[%clk 01:38:39][%emt 00:00:08]} 9...Be6 {[%clk 01:33:13][%emt 00:01:44]} 
10.Bxe6 {[%clk 01:37:50][%emt 00:01:18]} 10...fxe6 {[%clk 01:33:31][%emt
00:00:12]} 11.Nbd2 {[%clk 01:37:18][%emt 00:01:03]} 11...d5 {[%clk
01:24:45][%emt 00:09:16]} 12.c3 {[%clk 01:35:40][%emt 00:02:07]} 12...Qd6 
{[%clk 01:10:21][%emt 00:14:55]} 13.Qb3 {[%clk 01:31:22][%emt 00:04:47]} 
13...Kh8 {[%clk 01:05:06][%emt 00:05:46]} 14.Rf2 {[%clk 01:26:51][%emt
00:05:01]} 14...b6 {[%clk 00:58:35][%emt 00:07:01]} 15.Raf1 {[%clk 01:23:10]} 
15...Rae8 {[%clk 00:55:13][%emt 00:03:53]} 16.g4 {[%clk 01:16:13][%emt
00:07:27]} 16...dxe4 {[%clk 00:46:10][%emt 00:09:33]} 17.dxe4 {[%clk
01:15:53][%emt 00:00:50]} 17...a6 {[%clk 00:39:55][%emt 00:06:45]} 18.Qc4 
{[%clk 01:07:42][%emt 00:08:41]} 18...Nb8 {[%clk 00:39:00][%emt 00:01:25]} 
19.g5 {[%clk 00:59:04][%emt 00:09:07]} 19...hxg5 {[%clk 00:31:33][%emt
00:07:58]} 20.Nxg5 {[%clk 00:59:18][%emt 00:00:16]} 20...Kg8 {[%clk
00:31:44][%emt 00:00:19]} 21.Ndf3 {[%clk 00:56:54][%emt 00:02:54]} 21...Qc6 
{[%clk 00:26:59][%emt 00:05:15]} 22.Qe2 {[%clk 00:40:14][%emt 00:17:10]} 
22...Nxe4 {[%clk 00:25:03][%emt 00:02:26]} 23.Nxe5 {[%clk 00:39:38][%emt
00:01:05]} 23...Rxf2 {[%clk 00:23:20][%emt 00:02:13]} 24.Rxf2 {[%clk
00:39:55][%emt 00:00:13]} 24...Ng3 {[%clk 00:21:32][%emt 00:02:19]} 25.Qf3 
{[%clk 00:39:44][%emt 00:00:41]} 25...Qxf3 {[%clk 00:21:56][%emt 00:00:05]} 
26.Rxf3 {[%clk 00:38:52][%emt 00:01:22]} 26...Nf5 {[%clk 00:21:58][%emt
00:00:29]} 27.e4 {[%clk 00:35:25][%emt 00:03:57]} 27...Nd6 {[%clk 00:21:43][%emt
00:00:44]} 28.b4 {[%clk 00:31:54][%emt 00:04:02]} 28...Rf8 {[%clk 00:20:43][%emt
00:01:30]} 29.Kf2 {[%clk 00:28:40][%emt 00:03:43]} 29...Rf6 {[%clk
00:20:14][%emt 00:01:00]} 30.Ke3 {[%clk 00:21:11][%emt 00:08:00]} 30...a5 
{[%clk 00:20:43]} 31.bxa5 {[%clk 00:15:24][%emt 00:06:16]} 31...bxa5 {[%clk
00:21:06][%emt 00:00:06]} 32.Kd4 {[%clk 00:14:46][%emt 00:01:08]} 32...Na6 
{[%clk 00:19:07][%emt 00:02:30]} 33.Nc6 {[%clk 00:14:16][%emt 00:00:59]} 
33...e5+ {[%clk 00:11:40][%emt 00:07:58]} 34.Nxe5 {[%clk 00:11:04][%emt
00:03:41]} 34...Nb7 {[%clk 00:11:53][%emt 00:00:18]} 35.Nc4 {[%clk
00:06:09][%emt 00:05:25]} 35...Nbc5 {[%clk 00:09:38][%emt 00:02:45]} 36.Rxf6 
{[%clk 00:04:16][%emt 00:02:22]} 36...gxf6 {[%clk 00:10:07][%emt 00:00:02]} 
37.Nf3 {[%clk 00:04:38][%emt 00:00:07]} 37...Nxa4 {[%clk 00:09:25][%emt
00:01:13]} 38.Nxa5 {[%clk 00:05:00][%emt 00:00:08]} 38...N6c5 {[%clk
00:08:56][%emt 00:00:59]} 39.c4 {[%clk 00:02:46][%emt 00:02:44]} 39...Ne6+ 
{[%clk 00:07:38][%emt 00:01:48]} 40.Ke3 {[%clk 00:02:37][%emt 00:00:38]} 
40...Nac5 {[%clk 00:04:13][%emt 00:03:55]} 41.Nc6 {[%clk 00:47:32][%emt
00:05:35]} 41...Kf7 {[%clk 00:51:35][%emt 00:03:09]} 42.h4 {[%clk 00:41:19][%emt
00:06:42]} 42...Ng7 {[%clk 00:36:37][%emt 00:15:29]} 43.Nb4 {[%clk
00:32:42][%emt 00:09:07]} 43...f5 {[%clk 00:29:19][%emt 00:07:48]} 44.e5 {[%clk
00:31:40][%emt 00:01:32]} 44...Nce6 {[%clk 00:27:50][%emt 00:02:00]} 45.Nd5 
{[%clk 00:28:57][%emt 00:03:12]} 45...c5 {[%clk 00:19:29][%emt 00:08:51]} 
46.Nf4 {[%clk 00:23:35][%emt 00:05:52]} 46...Nxf4 {[%clk 00:16:24][%emt
00:03:35]} 47.Ng5+ {[%clk 00:23:25][%emt 00:00:40]} 47...Kg6 {[%clk
00:16:44][%emt 00:00:09]} 48.Kxf4 {[%clk 00:23:50][%emt 00:00:05]} 48...Nh5+ 
{[%clk 00:16:19][%emt 00:00:56]} 49.Kf3 {[%clk 00:24:04][%emt 00:00:15]} 
49...Ng7 {[%clk 00:09:44][%emt 00:07:05]} 50.Nh3 {[%clk 00:24:11][%emt
00:00:24]} 50...f4 {[%clk 00:09:09][%emt 00:01:05]} 51.Kg4 {[%clk 00:22:10]} ( 
51.Kg4 {Alan Pichot 2650 - Aryan Tari 2619, FIDE Grand Swiss 2023, Villa Marina,
Douglas, Isle of Man, Isle Of Man (11.32), 2023.11.05} ) ( 51.Ke4 {[%emt
00:02:57]} ) 1-0

[Event "FIDE Grand Swiss 2023"]
[Site "Villa Marina, Douglas, Isle of Man"]
[Date "2023.11.05"]
[Round "11.39"]
[White "Nguyen, Thai Dai Van"]
[Black "Abasov, Nijat"]
[Result "1-0"]
[WhiteElo "2618"]
[BlackElo "2679"]
[EventDate "2023.10.25"]
[ECO "A15"]
[PlyCount "77"]
[BlackFideId "13402960"]
[TimeControl "40/100 + 20/50 + 15 + 30s/move"]
[WhiteFideId "358878"]

1.c4 {[%clk 01:40:42][%emt 00:00:16]} 1...e6 {[%clk 01:40:52][%emt 00:00:08]} 
2.g3 {[%clk 01:41:04][%emt 00:00:09]} 2...Nf6 {[%clk 01:41:04][%emt 00:00:18]} 
3.Bg2 {[%clk 01:41:28][%emt 00:00:06]} 3...d5 {[%clk 01:41:25][%emt 00:00:08]} 
4.Nf3 {[%clk 01:41:54][%emt 00:00:04]} 4...dxc4 {[%clk 01:40:49][%emt 00:01:07]} 
5.Qa4+ {[%clk 01:41:14][%emt 00:01:10]} 5...Bd7 {[%clk 01:40:37][%emt 00:00:42]} 
6.Qxc4 {[%clk 01:41:38][%emt 00:00:06]} 6...c5 {[%clk 01:41:00][%emt 00:00:06]} 
7.d4 {[%clk 01:41:18][%emt 00:00:51]} 7...Nc6 {[%clk 01:36:57][%emt 00:04:33]} 
8.O-O {[%clk 01:41:23][%emt 00:00:25]} 8...cxd4 {[%clk 01:35:00][%emt 00:02:28]} 
9.Nxd4 {[%clk 01:41:47][%emt 00:00:07]} 9...Rc8 {[%clk 01:35:24][%emt 00:00:04]} 
10.Nc3 {[%clk 01:42:10][%emt 00:00:07]} 10...Nxd4 {[%clk 01:34:47][%emt
00:01:07]} 11.Qxd4 {[%clk 01:42:39][%emt 00:00:02]} 11...Bc5 {[%clk
01:35:11][%emt 00:00:06]} 12.Qh4 {[%clk 01:43:03][%emt 00:00:05]} 12...Bc6 
{[%clk 01:35:26][%emt 00:00:16]} 13.Bxc6+ {[%clk 01:40:03][%emt 00:03:30]} 
13...Rxc6 {[%clk 01:35:49][%emt 00:00:07]} 14.Rd1 {[%clk 01:36:46][%emt
00:03:47]} 14...Qa5 {[%clk 01:30:18][%emt 00:06:00]} 15.Bg5 {[%clk
01:34:57][%emt 00:02:19]} 15...Be7 {[%clk 01:30:40][%emt 00:00:09]} 16.Ne4 
{[%clk 01:35:19][%emt 00:00:07]} 16...Qe5 {[%clk 01:31:04][%emt 00:00:06]} ( 
16...Qc5 {[%emt 00:00:05]} ) 17.Nxf6+ {[%clk 01:35:46][%emt 00:00:04]} 
17...Bxf6 {[%clk 01:31:25][%emt 00:00:09]} 18.Bxf6 {[%clk 01:36:12][%emt
00:00:03]} 18...Qxf6 {[%clk 01:31:47][%emt 00:00:08]} 19.Qxf6 {[%clk
01:36:35][%emt 00:00:08]} 19...gxf6 {[%clk 01:32:10][%emt 00:00:06]} 20.Rac1 
{[%clk 01:36:59][%emt 00:00:06]} 20...Rxc1 {[%clk 01:32:33][%emt 00:00:08]} 
21.Rxc1 {[%clk 01:37:26][%emt 00:00:04]} 21...Kd7 {[%clk 01:32:53][%emt
00:00:08]} 22.Rc4 {[%clk 01:22:03][%emt 00:15:54]} 22...b6 {[%clk 01:28:17][%emt
00:05:06]} 23.Kg2 {[%clk 01:19:09][%emt 00:03:23]} 23...Rg8 {[%clk
01:25:07][%emt 00:03:41]} 24.Ra4 {[%clk 01:03:59][%emt 00:15:40]} 24...a5 
{[%clk 01:24:22][%emt 00:01:14]} 25.Rh4 {[%clk 01:04:26][%emt 00:00:03]} 
25...Rg7 {[%clk 01:06:14][%emt 00:18:38]} 26.e4 {[%clk 01:01:49][%emt 00:03:07]} 
26...Ke7 {[%clk 00:47:07][%emt 00:19:36]} 27.Rh5 {[%clk 00:32:49][%emt
00:29:32]} 27...Rg5 {[%clk 00:25:30][%emt 00:22:06]} 28.Rxh7 {[%clk
00:25:44][%emt 00:07:36]} 28...Re5 {[%clk 00:24:59][%emt 00:01:01]} 29.Kf3 
{[%clk 00:20:13][%emt 00:06:01]} 29...Kf8 {[%clk 00:25:12][%emt 00:00:17]} 
30.Rh8+ {[%clk 00:19:48][%emt 00:00:55]} 30...Kg7 {[%clk 00:25:39][%emt
00:00:03]} 31.Rb8 {[%clk 00:18:33][%emt 00:01:45]} 31...Rb5 {[%clk
00:26:02][%emt 00:00:06]} 32.b3 {[%clk 00:19:00][%emt 00:00:03]} 32...Rb4 
{[%clk 00:25:38][%emt 00:00:54]} 33.Rc8 {[%clk 00:12:49][%emt 00:06:42]} 
33...b5 {[%clk 00:24:19][%emt 00:01:49]} 34.Ke3 {[%clk 00:07:34][%emt 00:05:45]} 
34...f5 {[%clk 00:23:39][%emt 00:01:10]} 35.exf5 {[%clk 00:07:37][%emt
00:00:27]} 35...exf5 {[%clk 00:24:04][%emt 00:00:04]} 36.f3 {[%clk
00:06:49][%emt 00:01:19]} 36...a4 {[%clk 00:24:28][%emt 00:00:06]} 37.Rc3 
{[%clk 00:07:14][%emt 00:00:04]} 37...axb3 {[%clk 00:24:00][%emt 00:00:58]} 
38.axb3 {[%clk 00:07:33][%emt 00:00:12]} 38...f4+ {[%clk 00:24:19][%emt
00:00:11]} 39.Kd2 {[%clk 00:07:43] Thai Dai Van Nguyen 2618 - Nijat Abasov 2679,
FIDE Grand Swiss 2023, Villa Marina, Douglas, Isle of Man, Isle Of Man (11.39),
2023.11.05} 1-0

[Event "FIDE Grand Swiss 2023"]
[Site "Villa Marina, Douglas, Isle of Man"]
[Date "2023.11.05"]
[Round "11.43"]
[White "Gukesh, D"]
[Black "Akobian, Varuzhan"]
[Result "1-0"]
[WhiteElo "2758"]
[BlackElo "2582"]
[EventDate "2023.10.25"]
[ECO "D02"]
[PlyCount "111"]
[BlackClock "00:00:56"]
[BlackFideId "13300580"]
[TimeControl "40/100 + 20/50 + 15 + 30s/move"]
[WhiteClock "00:07:56"]
[WhiteFideId "46616543"]

1.d4 {[%clk 01:40:58][%emt 00:00:02]} 1...Nf6 {[%clk 01:40:47][%emt 00:00:13]} 
2.Bf4 {[%clk 01:41:22][%emt 00:00:06]} 2...e6 {[%clk 01:38:13][%emt 00:03:03]} 
3.e3 {[%clk 01:41:42][%emt 00:00:11]} 3...d5 {[%clk 01:36:23][%emt 00:02:20]} 
4.Nf3 {[%clk 01:42:05][%emt 00:00:07]} 4...Bd6 {[%clk 01:36:10][%emt 00:00:43]} 
5.c3 {[%clk 01:39:12][%emt 00:03:23]} 5...O-O {[%clk 01:32:53][%emt 00:03:47]} 
6.Bd3 {[%clk 01:39:32][%emt 00:00:10]} 6...c5 {[%clk 01:27:22][%emt 00:06:00]} 
7.Ne5 {[%clk 01:39:54][%emt 00:00:09]} 7...Qc7 {[%clk 01:26:14][%emt 00:01:39]} 
8.Nd2 {[%clk 01:40:17][%emt 00:00:06]} 8...Nbd7 {[%clk 01:21:45][%emt 00:04:59]} 
9.Ndf3 {[%clk 01:40:39][%emt 00:00:08]} 9...b6 {[%clk 01:21:31][%emt 00:00:44]} 
10.h4 {[%clk 01:28:32][%emt 00:12:37]} 10...Bb7 {[%clk 01:11:19][%emt 00:10:42]} 
11.h5 {[%clk 01:27:31][%emt 00:01:31]} 11...Rad8 {[%clk 00:51:05][%emt
00:20:44]} 12.g4 {[%clk 01:14:54][%emt 00:13:06]} 12...Ne4 {[%clk 00:48:44][%emt
00:02:51]} 13.g5 {[%clk 01:12:08][%emt 00:03:16]} 13...f6 {[%clk 00:33:16][%emt
00:15:58]} 14.gxf6 {[%clk 01:11:21][%emt 00:01:18]} 14...Ndxf6 {[%clk
00:33:03][%emt 00:00:43]} 15.Ke2 {[%clk 00:52:37][%emt 00:19:14]} 15...Qc8 
{[%clk 00:28:01][%emt 00:05:31]} 16.Qg1 {[%clk 00:41:36][%emt 00:11:31]} 
16...Ba6 {[%clk 00:26:09][%emt 00:02:23]} 17.Rd1 {[%clk 00:29:03][%emt
00:13:03]} 17...Bxd3+ {[%clk 00:19:58][%emt 00:06:41]} 18.Rxd3 {[%clk
00:29:31][%emt 00:00:02]} 18...Rde8 {[%clk 00:13:43][%emt 00:06:44]} 19.h6 
{[%clk 00:26:36][%emt 00:03:26]} 19...Re7 {[%clk 00:14:05][%emt 00:00:08]} 
20.hxg7 {[%clk 00:21:45][%emt 00:05:20]} 20...Rxg7 {[%clk 00:14:29][%emt
00:00:07]} 21.Bh6 {[%clk 00:22:09][%emt 00:00:06]} 21...Rf7 {[%clk
00:12:46][%emt 00:02:13]} 22.Bxg7 {[%clk 00:19:56][%emt 00:02:44]} 22...Rxg7 
{[%clk 00:13:10][%emt 00:00:04]} 23.Qf1 {[%clk 00:19:07][%emt 00:01:19]} 
23...Bxe5 {[%clk 00:11:54][%emt 00:01:45]} 24.Nxe5 {[%clk 00:19:28][%emt
00:00:11]} 24...Qa6 {[%clk 00:11:15][%emt 00:01:09]} 25.Qb1 {[%clk
00:11:27][%emt 00:08:32]} 25...Kf8 {[%clk 00:11:26][%emt 00:00:19]} 26.Rh4 
{[%clk 00:10:01][%emt 00:01:56]} 26...Ke7 {[%clk 00:09:26][%emt 00:02:28]} 
27.Qc2 {[%clk 00:07:52][%emt 00:02:40]} 27...Rg1 {[%clk 00:06:56][%emt
00:02:59]} 28.c4 {[%clk 00:03:50][%emt 00:04:33]} 28...Ng3+ {[%clk
00:04:55][%emt 00:02:30]} 29.Kf3 {[%clk 00:03:26][%emt 00:00:55]} 29...dxc4 
{[%clk 00:02:32][%emt 00:02:53]} 30.Rd1 {[%clk 00:01:38][%emt 00:02:18]} 
30...Qb7+ {[%clk 00:01:58][%emt 00:01:04]} 31.d5 {[%clk 00:01:57][%emt
00:00:11]} 31...Nf5 {[%clk 00:00:49][%emt 00:01:39]} 32.Rxg1 {[%clk
00:00:55][%emt 00:01:31]} 32...Qxd5+ {[%clk 00:00:35][%emt 00:00:45]} 33.Ke2 
{[%clk 00:00:49][%emt 00:00:36]} 33...Nxh4 {[%clk 00:00:56][%emt 00:00:09]} 
34.Qxc4 {[%clk 00:00:36][%emt 00:00:43]} 34...Qxe5 {[%clk 00:00:57][%emt
00:00:29]} 35.Qxh4 {[%clk 00:01:05][%emt 00:00:01]} 35...Qxb2+ {[%clk
00:00:54][%emt 00:00:34]} 36.Kf3 {[%clk 00:01:34]} 36...Kd6 {[%clk
00:00:39][%emt 00:00:45]} 37.Qf4+ {[%clk 00:01:07][%emt 00:00:56]} 37...Qe5 
{[%clk 00:00:32][%emt 00:00:36]} 38.Qxe5+ {[%clk 00:00:54][%emt 00:00:44]} 
38...Kxe5 {[%clk 00:01:00][%emt 00:00:02]} 39.Rg7 {[%clk 00:00:36][%emt
00:00:48]} 39...a5 {[%clk 00:01:09][%emt 00:00:22]} 40.Rb7 {[%clk 00:00:36][%emt
00:00:29]} 40...Nd5 {[%clk 00:01:22][%emt 00:00:17]} 41.e4 {[%clk 00:17:59][%emt
00:33:08]} 41...Nc3 {[%clk 00:48:19][%emt 00:03:32]} 42.Rxb6 {[%clk
00:18:12][%emt 00:00:17]} 42...Nxe4 {[%clk 00:47:25][%emt 00:01:24]} 43.Rb5 
{[%clk 00:12:01][%emt 00:06:42]} 43...a4 {[%clk 00:41:19][%emt 00:06:35]} 
44.Ra5 {[%clk 00:12:14][%emt 00:00:18]} 44...Nc3 {[%clk 00:38:47][%emt
00:03:01]} 45.Rxc5+ {[%clk 00:12:39][%emt 00:00:05]} 45...Kd4 {[%clk
00:39:13][%emt 00:00:03]} 46.Rh5 {[%clk 00:13:04][%emt 00:00:05]} 46...e5 
{[%clk 00:14:49][%emt 00:24:55]} 47.a3 {[%clk 00:13:10][%emt 00:00:24]} 
47...e4+ {[%clk 00:13:18][%emt 00:02:00]} 48.Kf4 {[%clk 00:12:30][%emt
00:01:10]} 48...Kc4 {[%clk 00:05:33][%emt 00:08:14]} 49.Ke3 {[%clk
00:08:29][%emt 00:04:32]} 49...Nb5 {[%clk 00:02:24][%emt 00:03:38]} 50.Rxh7 
{[%clk 00:05:40][%emt 00:03:20]} 50...Nxa3 {[%clk 00:02:48][%emt 00:00:05]} 
51.Ra7 {[%clk 00:05:59][%emt 00:00:12]} 51...Nc2+ {[%clk 00:00:35][%emt
00:02:43]} 52.Kxe4 {[%clk 00:06:28][%emt 00:00:02]} 52...a3 {[%clk
00:00:43][%emt 00:00:22]} 53.f4 {[%clk 00:06:46] [%emt 00:00:11]} 53...Kb3 
{[%clk 00:01:01] [%emt 00:00:12]} 54.f5 {[%clk 00:07:09] [%emt 00:00:07]} 
54...a2 {[%clk 00:01:01] [%emt 00:00:30]} 55.Rxa2 {[%clk 00:07:27] [%emt
00:00:12]} 55...Kxa2 {[%clk 00:01:14] [%emt 00:00:17]} 56.f6 {[%clk 00:07:56]
[%emt 00:00:01]} 1-0